[Event "Titled Tuesday Blitz April 18 Early 2023"]
[White "Flis, Pawel"]
[Black "Nugumanov, Bakhtiyar"]
[WhiteFideId "1112864"]
[BlackFideId "13701797"]
[WhiteElo "1822"]
[BlackElo "2209"]
[Result "1-0"]
[Round "09"]
[TimeControl "180+2"]
[Date "2023.04.18"]
[WhiteClock "0:01:24"]
[BlackClock "0:01:14"]

1. e4 {[%clk 0:03:00]}  e6 {[%clk 0:02:57]} 2. d4 {[%clk 0:03:00]}  d5 {[%clk 0:02:58]} 3. Nc3 {[%clk 0:03:00]}  Bb4 {[%clk 0:02:57]} 4. e5 {[%clk 0:02:59]}  c5 {[%clk 0:02:58]} 5. a3 {[%clk 0:02:59]}  Bxc3+ {[%clk 0:02:59]} 6. bxc3 {[%clk 0:02:59]}  Nc6 {[%clk 0:02:59]} 7. a4 {[%clk 0:02:57]}  Qa5 {[%clk 0:02:11]} 8. Bd2 {[%clk 0:02:30]}  Nge7 {[%clk 0:02:10]} 9. Nf3 {[%clk 0:02:25]}  Bd7 {[%clk 0:02:07]} 10. Bd3 {[%clk 0:02:24]}  c4 {[%clk 0:01:40]} 11. Be2 {[%clk 0:02:23]}  f6 {[%clk 0:01:41]} 12. exf6 {[%clk 0:02:18]}  gxf6 {[%clk 0:01:40]} 13. O-O {[%clk 0:02:07]}  e5 {[%clk 0:01:39]} 14. dxe5 {[%clk 0:02:06]}  fxe5 {[%clk 0:01:40]} 15. Ng5 {[%clk 0:01:56]}  Rg8 {[%clk 0:01:22]} 16. Bh5+ {[%clk 0:01:52]}  Ng6 {[%clk 0:01:21]} 17. Nxh7 {[%clk 0:01:43]}  O-O-O {[%clk 0:01:21]} 18. Nf6 {[%clk 0:01:41]}  Rg7 {[%clk 0:01:16]} 19. Bh6 {[%clk 0:01:25]}  Rh7 {[%clk 0:01:14]} 20. Nxh7 {[%clk 0:01:24]} 1-0


[Site "https://www.chess.com"]

[Event "Titled Tuesday Blitz April 18 Early 2023"]
[White "Jiganchine, Roman"]
[Black "Kriti Mayur Patel"]
[WhiteFideId "2603667"]
[BlackFideId "35061780"]
[WhiteElo "2254"]
[BlackElo "1306"]
[Result "0-1"]
[Round "09"]
[TimeControl "180+2"]
[Date "2023.04.18"]
[WhiteClock "0:00:16"]
[BlackClock "0:01:21"]

1. e4 {[%clk 0:02:57]}  e5 {[%clk 0:02:59]} 2. Nf3 {[%clk 0:02:53]}  Nc6 {[%clk 0:02:59]} 3. Nc3 {[%clk 0:02:53]}  Nf6 {[%clk 0:02:59]} 4. Bb5 {[%clk 0:02:52]}  Bb4 {[%clk 0:02:57]} 5. O-O {[%clk 0:02:52]}  O-O {[%clk 0:02:55]} 6. Bxc6 {[%clk 0:02:52]}  dxc6 {[%clk 0:02:52]} 7. d3 {[%clk 0:02:49]}  Bg4 {[%clk 0:02:49]} 8. h3 {[%clk 0:02:45]}  Bxf3 {[%clk 0:02:48]} 9. Qxf3 {[%clk 0:02:45]}  Bxc3 {[%clk 0:02:47]} 10. bxc3 {[%clk 0:02:45]}  c5 {[%clk 0:02:47]} 11. Bg5 {[%clk 0:02:36]}  b6 {[%clk 0:02:42]} 12. a4 {[%clk 0:02:33]}  Qe7 {[%clk 0:02:39]} 13. Qf5 {[%clk 0:02:30]}  h6 {[%clk 0:02:37]} 14. Bh4 {[%clk 0:02:26]}  Rad8 {[%clk 0:02:35]} 15. f4 {[%clk 0:02:24]}  exf4 {[%clk 0:02:32]} 16. e5 {[%clk 0:02:05]}  Rd5 {[%clk 0:02:27]} 17. exf6 {[%clk 0:01:48]}  Qe3+ {[%clk 0:02:22]} 18. Bf2 {[%clk 0:01:48]}  Qxf2+ {[%clk 0:02:21]} 19. Rxf2 {[%clk 0:01:48]}  Rxf5 {[%clk 0:02:21]} 20. fxg7 {[%clk 0:01:46]}  Kxg7 {[%clk 0:02:22]} 21. Raf1 {[%clk 0:01:41]}  Re8 {[%clk 0:02:20]} 22. Rxf4 {[%clk 0:01:41]}  Rxf4 {[%clk 0:02:19]} 23. Rxf4 {[%clk 0:01:41]}  Re2 {[%clk 0:02:19]} 24. Rf2 {[%clk 0:01:38]}  Re1+ {[%clk 0:02:19]} 25. Kh2 {[%clk 0:01:38]}  Ra1 {[%clk 0:02:19]} 26. Rf4 {[%clk 0:01:35]}  Ra2 {[%clk 0:02:18]} 27. d4 {[%clk 0:01:25]}  Rxa4 {[%clk 0:02:14]} 28. Kg3 {[%clk 0:01:16]}  Rc4 {[%clk 0:02:13]} 29. Kg4 {[%clk 0:01:15]}  Rxc3 {[%clk 0:02:11]} 30. dxc5 {[%clk 0:01:14]}  Rxc5 {[%clk 0:02:10]} 31. Rf2 {[%clk 0:01:14]}  a5 {[%clk 0:02:08]} 32. h4 {[%clk 0:01:10]}  a4 {[%clk 0:02:08]} 33. h5 {[%clk 0:01:10]}  Rg5+ {[%clk 0:02:06]} 34. Kh4 {[%clk 0:01:09]}  a3 {[%clk 0:02:03]} 35. c3 {[%clk 0:01:04]}  Ra5 {[%clk 0:02:03]} 36. Ra2 {[%clk 0:01:03]}  b5 {[%clk 0:02:02]} 37. g4 {[%clk 0:01:03]}  Ra4 {[%clk 0:02:02]} 38. Kg3 {[%clk 0:01:03]}  Kf6 {[%clk 0:02:01]} 39. Kf3 {[%clk 0:01:02]}  Kg5 {[%clk 0:02:02]} 40. Ke3 {[%clk 0:00:47]}  c5 {[%clk 0:02:00]} 41. Kd3 {[%clk 0:00:46]}  Rxg4 {[%clk 0:01:56]} 42. Rxa3 {[%clk 0:00:45]}  Rg3+ {[%clk 0:01:56]} 43. Ke4 {[%clk 0:00:44]}  b4 {[%clk 0:01:56]} 44. Ra5 {[%clk 0:00:44]}  Rxc3 {[%clk 0:01:54]} 45. Ra7 {[%clk 0:00:39]}  f5+ {[%clk 0:01:52]} 46. Ke5 {[%clk 0:00:39]}  Re3+ {[%clk 0:01:50]} 47. Kd5 {[%clk 0:00:39]}  b3 {[%clk 0:01:45]} 48. Kxc5 {[%clk 0:00:38]}  b2 {[%clk 0:01:43]} 49. Rb7 {[%clk 0:00:38]}  Rc3+ {[%clk 0:01:43]} 50. Kd4 {[%clk 0:00:38]}  Rc2 {[%clk 0:01:43]} 51. Rb5 {[%clk 0:00:37]}  Rf2 {[%clk 0:01:40]} 52. Ke3 {[%clk 0:00:36]}  Rh2 {[%clk 0:01:39]} 53. Kd4 {[%clk 0:00:34]}  Kg4 {[%clk 0:01:37]} 54. Rb3 {[%clk 0:00:31]}  Rh3 {[%clk 0:01:35]} 55. Rxb2 {[%clk 0:00:30]}  Rxh5 {[%clk 0:01:32]} 56. Rg2+ {[%clk 0:00:26]}  Kf3 {[%clk 0:01:30]} 57. Rg8 {[%clk 0:00:25]}  f4 {[%clk 0:01:29]} 58. Kd3 {[%clk 0:00:25]}  Rh1 {[%clk 0:01:28]} 59. Kd2 {[%clk 0:00:21]}  h5 {[%clk 0:01:28]} 60. Rd8 {[%clk 0:00:18]}  h4 {[%clk 0:01:29]} 61. Rd3+ {[%clk 0:00:18]}  Kf2 {[%clk 0:01:24]} 62. Rd4 {[%clk 0:00:18]}  f3 {[%clk 0:01:23]} 63. Rg4 {[%clk 0:00:19]}  h3 {[%clk 0:01:22]} 64. Rg5 {[%clk 0:00:18]}  h2 {[%clk 0:01:22]} 65. Rg8 {[%clk 0:00:16]}  Rg1 {[%clk 0:01:21]} 0-1


[Site "https://www.chess.com"]

[Event "Titled Tuesday Blitz April 18 Early 2023"]
[White "Prado, Alexandra"]
[Black "Broca Jimenez, Fernando"]
[WhiteFideId "3301346"]
[BlackFideId "5104742"]
[WhiteElo "1759"]
[BlackElo "2062"]
[Result "0-1"]
[Round "09"]
[TimeControl "180+2"]
[Date "2023.04.18"]
[WhiteClock "0:00:10"]
[BlackClock "0:00:47"]

1. e4 {[%clk 0:02:52]}  c5 {[%clk 0:02:59]} 2. Nc3 {[%clk 0:02:42]}  g6 {[%clk 0:02:57]} 3. g3 {[%clk 0:02:40]}  Bg7 {[%clk 0:02:57]} 4. Bg2 {[%clk 0:02:33]}  Nc6 {[%clk 0:02:57]} 5. d3 {[%clk 0:02:32]}  e6 {[%clk 0:02:57]} 6. Be3 {[%clk 0:02:29]}  b6 {[%clk 0:02:57]} 7. Qd2 {[%clk 0:02:21]}  Nd4 {[%clk 0:02:48]} 8. Rb1 {[%clk 0:01:59]}  Bb7 {[%clk 0:02:44]} 9. Nce2 {[%clk 0:01:52]}  Ne7 {[%clk 0:02:34]} 10. c3 {[%clk 0:01:41]}  Nxe2 {[%clk 0:02:14]} 11. Nxe2 {[%clk 0:01:37]}  d5 {[%clk 0:02:14]} 12. exd5 {[%clk 0:01:30]}  Bxd5 {[%clk 0:02:10]} 13. O-O {[%clk 0:01:22]}  Bxg2 {[%clk 0:02:07]} 14. Kxg2 {[%clk 0:01:22]}  Qd5+ {[%clk 0:02:07]} 15. Kg1 {[%clk 0:01:22]}  Qxa2 {[%clk 0:02:07]} 16. Ra1 {[%clk 0:00:47]}  Qd5 {[%clk 0:02:01]} 17. Nf4 {[%clk 0:00:44]}  Qd7 {[%clk 0:01:41]} 18. Ra6 {[%clk 0:00:30]}  O-O {[%clk 0:01:31]} 19. Rfa1 {[%clk 0:00:25]}  Nc6 {[%clk 0:00:55]} 20. Ne2 {[%clk 0:00:12]}  Rad8 {[%clk 0:00:53]} 21. Rd1 {[%clk 0:00:10]}  Ne5 {[%clk 0:00:47]} 22. d4 {[%clk 0:00:10]}  Nf3+ {[%clk 0:00:47]} 0-1


[Site "https://www.chess.com"]

[Event "Titled Tuesday Blitz April 18 Early 2023"]
[White "Shapiro, Viktor"]
[Black "rionelG"]
[WhiteFideId "4175700"]
[WhiteElo "2152"]
[BlackElo "2195"]
[Result "1-0"]
[Round "09"]
[TimeControl "180+2"]
[Date "2023.04.18"]
[WhiteClock "0:01:10"]
[BlackClock "0:00:02"]

1. c4 {[%clk 0:03:00]}  Nf6 {[%clk 0:02:57]} 2. Nc3 {[%clk 0:03:01]}  g6 {[%clk 0:02:57]} 3. d4 {[%clk 0:03:01]}  Bg7 {[%clk 0:02:57]} 4. Nf3 {[%clk 0:03:01]}  O-O {[%clk 0:02:57]} 5. Bg5 {[%clk 0:03:01]}  d6 {[%clk 0:02:54]} 6. e3 {[%clk 0:03:00]}  h6 {[%clk 0:02:52]} 7. Bh4 {[%clk 0:02:59]}  c5 {[%clk 0:02:49]} 8. Be2 {[%clk 0:02:59]}  Nbd7 {[%clk 0:02:44]} 9. h3 {[%clk 0:02:56]}  a6 {[%clk 0:02:36]} 10. O-O {[%clk 0:02:55]}  Rb8 {[%clk 0:02:34]} 11. a3 {[%clk 0:02:52]}  b6 {[%clk 0:02:33]} 12. b4 {[%clk 0:02:52]}  Bb7 {[%clk 0:02:28]} 13. Rc1 {[%clk 0:02:49]}  g5 {[%clk 0:02:11]} 14. Bg3 {[%clk 0:02:46]}  Be4 {[%clk 0:02:12]} 15. Nxe4 {[%clk 0:02:35]}  Nxe4 {[%clk 0:02:11]} 16. Bh2 {[%clk 0:02:36]}  f5 {[%clk 0:02:08]} 17. Bd3 {[%clk 0:02:35]}  Ndf6 {[%clk 0:02:01]} 18. Qc2 {[%clk 0:02:34]}  Qc7 {[%clk 0:01:56]} 19. Rfd1 {[%clk 0:02:30]}  Rfc8 {[%clk 0:01:53]} 20. g4 {[%clk 0:02:18]}  Nxf2 {[%clk 0:01:40]} 21. Qxf2 {[%clk 0:02:15]}  fxg4 {[%clk 0:01:40]} 22. Nd2 {[%clk 0:02:10]}  gxh3 {[%clk 0:01:31]} 23. Bf5 {[%clk 0:02:10]}  Rf8 {[%clk 0:01:29]} 24. Qe2 {[%clk 0:01:59]}  Kh8 {[%clk 0:01:15]} 25. Bxh3 {[%clk 0:01:57]}  e5 {[%clk 0:00:53]} 26. dxe5 {[%clk 0:01:56]}  dxe5 {[%clk 0:00:50]} 27. Bf5 {[%clk 0:01:53]}  Qe7 {[%clk 0:00:36]} 28. Ne4 {[%clk 0:01:51]}  Nxe4 {[%clk 0:00:30]} 29. Bxe4 {[%clk 0:01:50]}  cxb4 {[%clk 0:00:31]} 30. axb4 {[%clk 0:01:50]}  Qxb4 {[%clk 0:00:31]} 31. Rf1 {[%clk 0:01:40]}  Qd6 {[%clk 0:00:20]} 32. Rcd1 {[%clk 0:01:37]}  Qe6 {[%clk 0:00:18]} 33. Bd5 {[%clk 0:01:36]}  Qh3 {[%clk 0:00:18]} 34. e4 {[%clk 0:01:32]}  Rxf1+ {[%clk 0:00:09]} 35. Rxf1 {[%clk 0:01:31]}  Rf8 {[%clk 0:00:10]} 36. Rxf8+ {[%clk 0:01:30]}  Bxf8 {[%clk 0:00:10]} 37. Bxe5+ {[%clk 0:01:30]}  Kh7 {[%clk 0:00:09]} 38. Bd4 {[%clk 0:01:14]}  Qg3+ {[%clk 0:00:08]} 39. Kf1 {[%clk 0:01:14]}  Qh3+ {[%clk 0:00:07]} 40. Ke1 {[%clk 0:01:12]}  Bb4+ {[%clk 0:00:06]} 41. Kd1 {[%clk 0:01:11]}  Qb3+ {[%clk 0:00:06]} 42. Qc2 {[%clk 0:01:11]}  Qf3+ {[%clk 0:00:06]} 43. Kc1 {[%clk 0:01:12]}  Ba3+ {[%clk 0:00:05]} 44. Kb1 {[%clk 0:01:11]}  Bb4 {[%clk 0:00:02]} 45. e5+ {[%clk 0:01:10]} 1-0


[Site "https://www.chess.com"]

[Event "Titled Tuesday Blitz April 18 Early 2023"]
[White "Kotepalli, Sai Nirupama"]
[Black "Winkels, Marcel"]
[WhiteFideId "5039444"]
[BlackFideId "1003887"]
[WhiteElo "2328"]
[BlackElo "1900"]
[Result "1-0"]
[Round "09"]
[TimeControl "180+2"]
[Date "2023.04.18"]
[WhiteClock "0:00:37"]
[BlackClock "0:00:35"]

1. e4 {[%clk 0:03:00]}  c5 {[%clk 0:02:59]} 2. Nf3 {[%clk 0:03:00]}  d6 {[%clk 0:02:59]} 3. d3 {[%clk 0:02:59]}  Nc6 {[%clk 0:02:57]} 4. g3 {[%clk 0:02:58]}  g6 {[%clk 0:02:57]} 5. Bg2 {[%clk 0:02:57]}  Bg7 {[%clk 0:02:58]} 6. O-O {[%clk 0:02:56]}  e5 {[%clk 0:02:58]} 7. c3 {[%clk 0:02:55]}  Nge7 {[%clk 0:02:59]} 8. a3 {[%clk 0:02:55]}  O-O {[%clk 0:02:58]} 9. b4 {[%clk 0:02:51]}  b6 {[%clk 0:02:57]} 10. b5 {[%clk 0:02:50]}  Na5 {[%clk 0:02:55]} 11. c4 {[%clk 0:02:49]}  h6 {[%clk 0:02:55]} 12. Bd2 {[%clk 0:02:38]}  f5 {[%clk 0:02:52]} 13. Bxa5 {[%clk 0:02:37]}  bxa5 {[%clk 0:02:51]} 14. Nbd2 {[%clk 0:02:36]}  g5 {[%clk 0:02:44]} 15. exf5 {[%clk 0:02:29]}  Bxf5 {[%clk 0:02:42]} 16. Ne4 {[%clk 0:02:28]}  Bg4 {[%clk 0:02:35]} 17. h3 {[%clk 0:02:25]}  Bh5 {[%clk 0:02:29]} 18. g4 {[%clk 0:02:17]}  Bg6 {[%clk 0:02:28]} 19. h4 {[%clk 0:02:17]}  gxh4 {[%clk 0:02:18]} 20. Nxh4 {[%clk 0:02:17]}  Bh7 {[%clk 0:02:09]} 21. Qd2 {[%clk 0:02:07]}  Rf4 {[%clk 0:02:05]} 22. Ng3 {[%clk 0:01:59]}  Rxg4 {[%clk 0:01:56]} 23. Nf3 {[%clk 0:01:47]}  e4 {[%clk 0:01:55]} 24. Nh2 {[%clk 0:01:35]}  Rxg3 {[%clk 0:01:40]} 25. fxg3 {[%clk 0:01:29]}  Bd4+ {[%clk 0:01:26]} 26. Kh1 {[%clk 0:01:22]}  Nf5 {[%clk 0:01:25]} 27. Rxf5 {[%clk 0:01:10]}  Bxf5 {[%clk 0:01:23]} 28. Rf1 {[%clk 0:01:10]}  e3 {[%clk 0:01:19]} 29. Qe2 {[%clk 0:01:07]}  Qg5 {[%clk 0:01:18]} 30. Bxa8 {[%clk 0:01:04]}  Qg6 {[%clk 0:01:02]} 31. Be4 {[%clk 0:00:47]}  Bxe4+ {[%clk 0:01:01]} 32. dxe4 {[%clk 0:00:48]}  Qxe4+ {[%clk 0:01:01]} 33. Qf3 {[%clk 0:00:47]}  Qxf3+ {[%clk 0:00:51]} 34. Nxf3 {[%clk 0:00:47]}  e2 {[%clk 0:00:51]} 35. Re1 {[%clk 0:00:45]}  d5 {[%clk 0:00:39]} 36. cxd5 {[%clk 0:00:39]}  Bf2 {[%clk 0:00:34]} 37. Rxe2 {[%clk 0:00:38]}  Bxg3 {[%clk 0:00:35]} 38. Rg2 {[%clk 0:00:37]} 1-0


[Site "https://www.chess.com"]

[Event "Titled Tuesday Blitz April 18 Early 2023"]
[White "Barria Santos, Jose Guilherme"]
[Black "Semenova, Alina"]
[WhiteFideId "1939300"]
[BlackFideId "24113875"]
[WhiteElo "2266"]
[BlackElo "1833"]
[Result "1-0"]
[Round "09"]
[TimeControl "180+2"]
[Date "2023.04.18"]
[WhiteClock "0:01:52"]
[BlackClock "0:01:36"]

1. e4 {[%clk 0:03:00]}  c5 {[%clk 0:02:59]} 2. Nf3 {[%clk 0:03:01]}  Nc6 {[%clk 0:03:00]} 3. d4 {[%clk 0:03:01]}  cxd4 {[%clk 0:03:01]} 4. Nxd4 {[%clk 0:03:01]}  Nf6 {[%clk 0:03:01]} 5. Nc3 {[%clk 0:03:01]}  g6 {[%clk 0:03:01]} 6. Be3 {[%clk 0:02:58]}  Bg7 {[%clk 0:03:01]} 7. f3 {[%clk 0:02:58]}  O-O {[%clk 0:03:01]} 8. Bc4 {[%clk 0:02:57]}  d6 {[%clk 0:02:55]} 9. Qd2 {[%clk 0:02:56]}  Nd7 {[%clk 0:02:55]} 10. O-O-O {[%clk 0:02:54]}  Nb6 {[%clk 0:02:55]} 11. Bb3 {[%clk 0:02:54]}  Na5 {[%clk 0:02:55]} 12. Nd5 {[%clk 0:02:43]}  Nbc4 {[%clk 0:02:50]} 13. Qd3 {[%clk 0:02:35]}  Nxe3 {[%clk 0:02:48]} 14. Qxe3 {[%clk 0:02:35]}  Nxb3+ {[%clk 0:02:48]} 15. axb3 {[%clk 0:02:33]}  e6 {[%clk 0:02:42]} 16. Nc3 {[%clk 0:02:32]}  Qa5 {[%clk 0:02:29]} 17. Kb1 {[%clk 0:02:32]}  a6 {[%clk 0:02:14]} 18. h4 {[%clk 0:02:32]}  h5 {[%clk 0:02:11]} 19. g4 {[%clk 0:02:32]}  Bd7 {[%clk 0:02:09]} 20. gxh5 {[%clk 0:02:31]}  Qxh5 {[%clk 0:02:08]} 21. Rdg1 {[%clk 0:02:26]}  Bh6 {[%clk 0:02:02]} 22. f4 {[%clk 0:02:22]}  e5 {[%clk 0:01:55]} 23. Nde2 {[%clk 0:02:09]}  Bg4 {[%clk 0:01:44]} 24. Nd5 {[%clk 0:02:08]}  Kg7 {[%clk 0:01:36]} 25. Ng3 {[%clk 0:01:52]} 1-0


[Site "https://www.chess.com"]

[Event "Titled Tuesday Blitz April 18 Early 2023"]
[White "Le, Tuan Minh"]
[Black "Gupta, Abhijeet"]
[WhiteFideId "12401153"]
[BlackFideId "5010608"]
[WhiteElo "2566"]
[BlackElo "2528"]
[Result "0-1"]
[Round "10"]
[TimeControl "180+2"]
[Date "2023.04.18"]
[WhiteClock "0:00:04"]
[BlackClock "0:01:00"]

1. d4 {[%clk 0:03:00]}  Nf6 {[%clk 0:02:59]} 2. Nf3 {[%clk 0:03:01]}  g6 {[%clk 0:02:58]} 3. Bg5 {[%clk 0:03:00]}  Bg7 {[%clk 0:02:56]} 4. Nbd2 {[%clk 0:03:01]}  O-O {[%clk 0:02:55]} 5. c3 {[%clk 0:03:01]}  d6 {[%clk 0:02:51]} 6. e4 {[%clk 0:03:01]}  c5 {[%clk 0:02:50]} 7. dxc5 {[%clk 0:03:02]}  dxc5 {[%clk 0:02:51]} 8. Bc4 {[%clk 0:03:03]}  Nc6 {[%clk 0:02:50]} 9. Qe2 {[%clk 0:03:03]}  Qc7 {[%clk 0:02:47]} 10. O-O {[%clk 0:03:02]}  Na5 {[%clk 0:02:40]} 11. Bd3 {[%clk 0:03:00]}  h6 {[%clk 0:02:37]} 12. Bxf6 {[%clk 0:02:45]}  exf6 {[%clk 0:02:38]} 13. Nc4 {[%clk 0:02:38]}  Nxc4 {[%clk 0:02:35]} 14. Bxc4 {[%clk 0:02:39]}  Re8 {[%clk 0:02:35]} 15. Qc2 {[%clk 0:02:34]}  f5 {[%clk 0:02:33]} 16. Rfe1 {[%clk 0:02:19]}  fxe4 {[%clk 0:02:32]} 17. Rxe4 {[%clk 0:02:15]}  Bf5 {[%clk 0:02:31]} 18. Rxe8+ {[%clk 0:02:12]}  Rxe8 {[%clk 0:02:31]} 19. Qb3 {[%clk 0:02:09]}  a6 {[%clk 0:02:27]} 20. a4 {[%clk 0:02:09]}  h5 {[%clk 0:02:16]} 21. h3 {[%clk 0:02:08]}  Bf6 {[%clk 0:02:13]} 22. a5 {[%clk 0:02:00]}  Kg7 {[%clk 0:02:09]} 23. Bd5 {[%clk 0:02:00]}  Re7 {[%clk 0:02:09]} 24. Re1 {[%clk 0:01:32]}  Rd7 {[%clk 0:02:02]} 25. Qa2 {[%clk 0:01:16]}  g5 {[%clk 0:01:57]} 26. Nh2 {[%clk 0:01:11]}  g4 {[%clk 0:01:53]} 27. hxg4 {[%clk 0:01:11]}  hxg4 {[%clk 0:01:54]} 28. Nf1 {[%clk 0:01:10]}  Bd3 {[%clk 0:01:49]} 29. Ng3 {[%clk 0:01:08]}  Be5 {[%clk 0:01:43]} 30. Nf1 {[%clk 0:00:54]}  c4 {[%clk 0:01:39]} 31. Be4 {[%clk 0:00:46]}  g3 {[%clk 0:01:39]} 32. fxg3 {[%clk 0:00:28]}  Qc5+ {[%clk 0:01:32]} 33. Kh1 {[%clk 0:00:19]}  Bxf1 {[%clk 0:01:31]} 34. Rxf1 {[%clk 0:00:17]}  Rd6 {[%clk 0:01:29]} 35. Bf5 {[%clk 0:00:16]}  Rf6 {[%clk 0:01:08]} 36. Qb1 {[%clk 0:00:16]}  Qe3 {[%clk 0:01:03]} 37. Rf3 {[%clk 0:00:04]}  Rh6+ {[%clk 0:01:00]} 0-1


[Site "https://www.chess.com"]

[Event "Titled Tuesday Blitz April 18 Early 2023"]
[White "Timofeev, Artyom"]
[Black "Korobov, Anton"]
[WhiteFideId "4140419"]
[BlackFideId "14105730"]
[WhiteElo "2586"]
[BlackElo "2638"]
[Result "1-0"]
[Round "10"]
[TimeControl "180+2"]
[Date "2023.04.18"]
[WhiteClock "0:00:22"]
[BlackClock "0:00:06"]

1. e4 {[%clk 0:03:00]}  c5 {[%clk 0:02:59]} 2. Nf3 {[%clk 0:03:00]}  d6 {[%clk 0:03:00]} 3. d4 {[%clk 0:03:00]}  cxd4 {[%clk 0:03:00]} 4. Nxd4 {[%clk 0:03:00]}  Nf6 {[%clk 0:03:00]} 5. Nc3 {[%clk 0:03:00]}  a6 {[%clk 0:03:01]} 6. Be3 {[%clk 0:03:00]}  e6 {[%clk 0:03:00]} 7. Qf3 {[%clk 0:02:59]}  Qc7 {[%clk 0:02:48]} 8. g4 {[%clk 0:02:57]}  b5 {[%clk 0:02:48]} 9. g5 {[%clk 0:02:57]}  Nfd7 {[%clk 0:02:48]} 10. O-O-O {[%clk 0:02:52]}  Bb7 {[%clk 0:02:48]} 11. Qh3 {[%clk 0:02:46]}  Nc5 {[%clk 0:02:35]} 12. g6 {[%clk 0:02:20]}  b4 {[%clk 0:02:33]} 13. Nd5 {[%clk 0:02:08]}  exd5 {[%clk 0:02:08]} 14. Qxh7 {[%clk 0:02:08]}  Rxh7 {[%clk 0:02:07]} 15. gxh7 {[%clk 0:02:08]}  Nc6 {[%clk 0:02:01]} 16. h8=Q {[%clk 0:02:05]}  Nxd4 {[%clk 0:01:53]} 17. Bxd4 {[%clk 0:02:03]}  b3 {[%clk 0:01:53]} 18. axb3 {[%clk 0:01:58]}  Nxb3+ {[%clk 0:01:53]} 19. Kb1 {[%clk 0:01:58]}  Nxd4 {[%clk 0:01:47]} 20. Rxd4 {[%clk 0:01:58]}  Qc5 {[%clk 0:01:22]} 21. Rd1 {[%clk 0:01:20]}  dxe4 {[%clk 0:01:17]} 22. Bh3 {[%clk 0:01:12]}  Rb8 {[%clk 0:01:06]} 23. Rhe1 {[%clk 0:00:52]}  Bc6 {[%clk 0:01:00]} 24. Re3 {[%clk 0:00:49]}  d5 {[%clk 0:00:52]} 25. Rb3 {[%clk 0:00:42]}  Rxb3 {[%clk 0:00:42]} 26. cxb3 {[%clk 0:00:43]}  Bb5 {[%clk 0:00:39]} 27. Bf1 {[%clk 0:00:39]}  Qxf2 {[%clk 0:00:19]} 28. Bxb5+ {[%clk 0:00:38]}  axb5 {[%clk 0:00:20]} 29. Qh5 {[%clk 0:00:31]}  Qc5 {[%clk 0:00:13]} 30. Rxd5 {[%clk 0:00:29]}  Qg1+ {[%clk 0:00:12]} 31. Rd1 {[%clk 0:00:30]}  Qb6 {[%clk 0:00:10]} 32. Qd5 {[%clk 0:00:25]}  Ke7 {[%clk 0:00:05]} 33. Qxe4+ {[%clk 0:00:25]}  Kf6 {[%clk 0:00:06]} 34. Rf1+ {[%clk 0:00:24]}  Kg5 {[%clk 0:00:06]} 35. Rf5+ {[%clk 0:00:22]}  Kh6 {[%clk 0:00:06]} 36. Qh4+ {[%clk 0:00:22]}  Kg6 {[%clk 0:00:06]} 37. Qh5# {[%clk 0:00:22]} 1-0


[Site "https://www.chess.com"]

[Event "Titled Tuesday Blitz April 18 Early 2023"]
[White "Ibarra Jerez, Jose Carlos"]
[Black "Nakamura, Hikaru"]
[WhiteFideId "2226332"]
[BlackFideId "2016192"]
[WhiteElo "2638"]
[BlackElo "2885"]
[Result "0-1"]
[Round "10"]
[TimeControl "180+2"]
[Date "2023.04.18"]
[WhiteClock "0:00:15"]
[BlackClock "0:00:46"]

1. e4 {[%clk 0:03:00]}  g6 {[%clk 0:02:59]} 2. d4 {[%clk 0:03:00]}  Bg7 {[%clk 0:02:59]} 3. Nc3 {[%clk 0:03:00]}  a6 {[%clk 0:02:59]} 4. Be3 {[%clk 0:03:00]}  b5 {[%clk 0:02:59]} 5. Nf3 {[%clk 0:02:59]}  Bb7 {[%clk 0:02:59]} 6. Bd3 {[%clk 0:03:00]}  d6 {[%clk 0:02:59]} 7. e5 {[%clk 0:03:00]}  Nd7 {[%clk 0:02:48]} 8. e6 {[%clk 0:02:58]}  fxe6 {[%clk 0:02:49]} 9. Ng5 {[%clk 0:02:58]}  Nf8 {[%clk 0:02:50]} 10. O-O {[%clk 0:02:59]}  Nh6 {[%clk 0:02:43]} 11. a4 {[%clk 0:02:42]}  b4 {[%clk 0:02:40]} 12. Ne2 {[%clk 0:02:42]}  Nf5 {[%clk 0:02:37]} 13. c3 {[%clk 0:02:42]}  h6 {[%clk 0:02:28]} 14. Ne4 {[%clk 0:02:22]}  bxc3 {[%clk 0:02:17]} 15. bxc3 {[%clk 0:02:22]}  Nd7 {[%clk 0:02:16]} 16. Nf4 {[%clk 0:02:20]}  Nf8 {[%clk 0:02:11]} 17. Qb3 {[%clk 0:02:18]}  Qc8 {[%clk 0:02:07]} 18. Ng3 {[%clk 0:02:12]}  Nh4 {[%clk 0:01:58]} 19. Bc4 {[%clk 0:01:44]}  e5 {[%clk 0:01:38]} 20. Bf7+ {[%clk 0:01:43]}  Kd7 {[%clk 0:01:27]} 21. Ne6 {[%clk 0:01:39]}  Bxg2 {[%clk 0:01:16]} 22. Nxg7 {[%clk 0:01:33]}  Qb7 {[%clk 0:01:11]} 23. Qxb7 {[%clk 0:00:36]}  Bxb7 {[%clk 0:01:12]} 24. d5 {[%clk 0:00:36]}  Rh7 {[%clk 0:01:07]} 25. Be6+ {[%clk 0:00:25]}  Nxe6 {[%clk 0:00:55]} 26. dxe6+ {[%clk 0:00:24]}  Kc6 {[%clk 0:00:53]} 27. Rfb1 {[%clk 0:00:16]}  Rxg7 {[%clk 0:00:46]} 28. Bxh6 {[%clk 0:00:15]}  Rh7 {[%clk 0:00:46]} 29. Bg5 {[%clk 0:00:15]}  Nf3+ {[%clk 0:00:46]} 0-1


[Site "https://www.chess.com"]